bitfinex/quotes_BTCUSD_20250219
["timestamp","ask_amount","ask_price","bid_price","bid_amount"]
[1739967597485,0.31180988,96534.0,96533.0,0.0018512]
[1739967597734,0.31280988,96534.0,96533.0,0.0008512]
[1739967598121,0.33004851,96534.0,96533.0,0.0008512]
[1739967600649,0.39729733,96534.0,96533.0,0.0008512]
[1739967603567,0.3810587,96534.0,96533.0,0.0008512]
[1739967606733,0.39729794,96534.0,96533.0,0.0008512]
[1739967610765,0.33004912,96534.0,96533.0,0.0008512]
[1739967610959,0.31380988,96534.0,96533.0,0.0008512]
[1739967612002,0.3078106,96534.0,96533.0,0.0008512]
[1739967612910,0.1524256,96534.0,96533.0,0.0008512]
[1739967613150,0.3078106,96534.0,96533.0,0.0008512]
[1739967613827,0.3068106,96534.0,96533.0,0.0008512]
[1739967614251,0.3078106,96534.0,96533.0,0.0008512]
[1739967614657,0.3068106,96534.0,96533.0,0.0008512]
[1739967615003,0.3058106,96534.0,96533.0,0.0008512]
[1739967615204,0.3068106,96534.0,96533.0,0.0008512]
[1739967615625,0.3058106,96534.0,96533.0,0.0008512]
[1739967616041,0.3068106,96534.0,96533.0,0.0008512]
[1739967616574,0.3220491,96534.0,96533.0,0.0008512]
[1739967621691,0.1666641,96534.0,96533.0,0.0008512]
[1739967621895,0.3220491,96534.0,96533.0,0.0008512]
[1739967622274,0.1666641,96534.0,96533.0,0.0008512]
[1739967622510,0.3220491,96534.0,96533.0,0.0008512]
[1739967622896,0.3220491,96534.0,96533.0,0.0028512]
[1739967623272,0.3220491,96534.0,96533.0,0.0038512]
[1739967623472,0.3220491,96534.0,96533.0,0.0018512]
[1739967623677,0.3220491,96534.0,96533.0,0.0028512]
[1739967624709,0.1504256,96534.0,96533.0,0.0228512]
[1739967624912,0.1504256,96534.0,96533.0,0.0218512]
[1739967625136,0.1504256,96534.0,96533.0,0.0208512]
[1739967625481,0.1504256,96534.0,96533.0,0.0228512]
[1739967625696,0.1504256,96534.0,96533.0,0.0218512]
[1739967625889,0.1504256,96534.0,96533.0,0.0208512]
[1739967626152,0.1504256,96534.0,96533.0,0.0238512]
[1739967627716,0.16666345,96534.0,96533.0,0.0238512]
[1739967628334,0.16463748,96534.0,96533.0,0.0238512]
[1739967628532,0.01666345,96534.0,96533.0,0.12635485]
[1739967628714,0.01666345,96534.0,96533.0,0.40404185]
[1739967628715,0.00907133,96534.0,96533.0,0.40404185]
[1739967629367,0.00949693,96534.0,96533.0,0.40211038]
[1739967629561,0.00949693,96534.0,96533.0,0.40011038]
[1739967629765,0.00949693,96534.0,96533.0,0.72471038]
[1739967629923,0.0004256,96534.0,96533.0,0.72471038]
[1739967630118,0.0004256,96534.0,96533.0,0.72971038]
[1739967630762,0.0004256,96534.0,96533.0,0.74044347]
[1739967631319,0.0004256,96534.0,96533.0,0.73544347]
[1739967631818,0.0004256,96534.0,96533.0,0.74044347]
[1739967632062,0.0004256,96534.0,96533.0,0.73444347]
[1739967632251,0.0004256,96534.0,96533.0,0.74544347]
[1739967632612,0.0004256,96534.0,96533.0,0.74044347]
[1739967632808,0.0004256,96534.0,96533.0,0.74644347]
[1739967633007,0.0004256,96534.0,96533.0,0.74044347]
[1739967633437,0.0004256,96544.0,96543.0,0.30219073]
[1739967633616,0.0004256,96544.0,96543.0,0.40469438]
[1739967635124,0.0004256,96544.0,96543.0,0.40268805]
[1739967635565,0.0004256,96544.0,96543.0,0.40168805]
[1739967635945,0.0004256,96544.0,96543.0,0.40868805]
[1739967636143,0.0014256,96544.0,96543.0,0.41568805]
[1739967638255,0.0014256,96544.0,96543.0,0.43602243]
[1739967638926,0.0014256,96544.0,96543.0,1.30632243]
[1739967654116,0.0014256,96544.0,96543.0,1.30717363]
[1739967656514,0.0014256,96544.0,96543.0,1.31469363]
[1739967661638,0.00742187,96544.0,96543.0,1.34695965]
[1739967672845,0.00642187,96544.0,96543.0,1.33295965]
[1739967673091,0.00642187,96544.0,96543.0,1.34695965]
[1739967673232,0.00642187,96544.0,96543.0,1.33995965]
[1739967673835,0.00642187,96544.0,96543.0,1.34695965]
[1739967674042,0.0004256,96544.0,96543.0,1.34695965]
[1739967678853,0.00642733,96544.0,96543.0,1.34695965]
[1739967697790,0.00642733,96544.0,96543.0,1.34691965]
[1739967701055,0.00642733,96544.0,96543.0,1.34691965]
[1739967720940,0.00642733,96544.0,96543.0,1.35339375]
[1739967732491,0.00642733,96544.0,96543.0,1.34639375]
[1739967732701,0.00642733,96544.0,96543.0,1.35339375]
[1739967733126,0.00642733,96544.0,96543.0,1.34639375]
[1739967733652,0.00642733,96544.0,96543.0,1.35339375]
[1739967737137,0.00642733,96544.0,96543.0,1.30689375]
[1739967739500,0.00440733,96544.0,96543.0,1.30689375]
[1739967746942,0.00483283,96544.0,96543.0,1.30689375]
[1739967780614,1e-08,96545.0,96544.0,0.3197824]
[1739967780843,1e-08,96545.0,96544.0,0.45455207]
[1739967782357,1e-08,96545.0,96544.0,0.46155207]
[1739967782761,0.0004258,96551.0,96550.0,0.2519724]
[1739967782962,0.00086148,96551.0,96550.0,0.38674207]
[1739967784188,0.00086148,96551.0,96550.0,0.39374207]
[1739967784387,0.00086148,96551.0,96550.0,1.26404207]
[1739967784581,0.00086148,96551.0,96550.0,1.27104207]
[1739967787494,0.00086148,96551.0,96550.0,1.28161495]
[1739967790409,0.00086148,96551.0,96550.0,1.28923225]
[1739967790558,0.00086148,96551.0,96550.0,1.27523225]
[1739967791009,0.00086148,96551.0,96550.0,1.28223225]
[1739967791413,0.00086148,96551.0,96550.0,1.28923225]
[1739967791635,0.00086148,96551.0,96550.0,1.28223225]
[1739967791943,0.0004257,96572.0,96550.0,1.28923225]
[1739967792138,0.0004257,96572.0,96571.0,0.1712394]
[1739967792139,0.00046924,96572.0,96571.0,0.1712394]
[1739967792368,0.00046924,96572.0,96571.0,0.60582305]
[1739967792769,0.00046924,96572.0,96571.0,0.45049705]
[1739967793605,0.00046924,96572.0,96571.0,0.45749705]
[1739967793979,0.00046924,96572.0,96571.0,0.61882305]
[1739967794151,0.00642999,96572.0,96571.0,0.61882305]
[1739967794798,0.00642999,96572.0,96571.0,0.61134305]
[1739967794970,0.00642999,96572.0,96571.0,0.61882305]
[1739967795166,0.00642999,96572.0,96571.0,0.46349705]
[1739967795579,0.00046924,96572.0,96571.0,0.46349705]
[1739967796008,0.00046924,96572.0,96571.0,0.45601705]
[1739967796209,0.00046924,96572.0,96571.0,0.46349705]
[1739967798823,0.00046924,96572.0,96571.0,0.48448084]
[1739967810893,0.00046924,96572.0,96571.0,0.49149333]
[1739967812838,0.00046924,96572.0,96571.0,0.64681933]
[1739967813799,0.00046924,96572.0,96571.0,0.72911933]
[1739967814752,0.00046924,96572.0,96571.0,0.76142249]
[1739967814956,0.00046924,96572.0,96571.0,0.74842249]
[1739967815181,0.00046924,96572.0,96571.0,0.75542249]
[1739967815387,0.00046924,96572.0,96571.0,0.73011933]
[1739967815762,0.00046924,96572.0,96571.0,0.72311933]
[1739967815961,0.00046924,96572.0,96571.0,0.73011933]
[1739967816580,0.00046924,96572.0,96571.0,0.72311933]
[1739967816779,0.00046924,96572.0,96571.0,0.73011933]
[1739967817180,0.00046924,96572.0,96571.0,0.72311933]
[1739967817582,0.00046924,96572.0,96571.0,0.73011933]
[1739967821210,0.00046924,96572.0,96571.0,0.76242231]
[1739967823483,0.00046924,96572.0,96571.0,0.75542231]
[1739967823884,0.00046924,96572.0,96571.0,0.76242231]
[1739967824242,0.00046924,96572.0,96571.0,0.75542231]
[1739967824591,0.00046924,96572.0,96571.0,0.76242231]
[1739967830725,0.00046924,96572.0,96571.0,0.75494231]
[1739967830924,0.00046924,96572.0,96571.0,0.76238231]
[1739967843671,0.01623005,96587.0,96583.0,0.155305]
[1739967843905,0.01627366,96587.0,96584.0,0.42710365]
[1739967844615,0.01627366,96587.0,96584.0,0.58240865]
[1739967845079,0.01627366,96587.0,96584.0,0.58840865]
[1739967845300,0.01627366,96587.0,96584.0,0.43310365]
[1739967845750,0.01627366,96587.0,96584.0,0.59540765]
[1739967845953,0.01627366,96587.0,96584.0,0.44010365]
[1739967847063,0.01627366,96587.0,96584.0,0.59540765]
[1739967847554,0.01627366,96587.0,96584.0,0.44010365]
[1739967847772,0.01627366,96587.0,96584.0,0.59540865]
[1739967848002,0.01627366,96587.0,96584.0,0.44010365]
[1739967848887,4.361e-05,96587.0,96584.0,0.44010365]
[1739967849118,4.361e-05,96587.0,96586.0,0.02048572]
[1739967849392,4.361e-05,96587.0,96586.0,0.11841705]
[1739967849610,0.07824361,96587.0,96586.0,0.12585705]
[1739967850548,4.361e-05,96587.0,96586.0,0.12585705]
[1739967850769,4.361e-05,96587.0,96586.0,0.13185705]
[1739967851544,4.361e-05,96587.0,96586.0,0.13885705]
[1739967852043,0.01627296,96587.0,96586.0,0.13885705]
[1739967852276,0.01627296,96587.0,96586.0,0.13141705]
[1739967852743,0.01627296,96587.0,96586.0,0.13885705]
[1739967853648,0.01669856,96587.0,96586.0,0.13885705]
[1739967856809,0.00046921,96587.0,96586.0,0.13885705]
[1739967859615,0.01669825,96587.0,96586.0,0.13885705]
[1739967861547,0.01658998,96587.0,96586.0,0.13885705]
[1739967863457,0.01658998,96587.0,96586.0,0.13141705]
[1739967863711,0.00036094,96587.0,96586.0,0.13885705]
[1739967866719,0.01659001,96587.0,96586.0,0.13141705]
[1739967866958,0.01659001,96587.0,96586.0,0.13885705]
[1739967872491,0.01636733,96587.0,96586.0,0.13885705]
[1739967873691,0.00013826,96587.0,96586.0,0.13885705]
[1739967876462,0.01636739,96587.0,96586.0,0.13885705]
[1739967877775,0.01636739,96587.0,96586.0,0.13970805]
[1739967883511,0.00013826,96587.0,96586.0,0.13970805]
[1739967886636,0.01636732,96587.0,96586.0,0.13970805]
[1739967887423,0.01636732,96587.0,96586.0,0.13226805]
[1739967897042,0.01636732,96587.0,96586.0,0.13970805]
[1739967897339,0.00013826,96587.0,96586.0,0.13970805]
[1739967900123,0.01636704,96587.0,96586.0,0.13970805]
[1739967901084,0.01636704,96587.0,96586.0,0.14592943]
[1739967907306,0.00013826,96587.0,96586.0,0.14592943]
[1739967910193,0.01636738,96587.0,96586.0,0.14592943]
[1739967917127,0.00013826,96587.0,96586.0,0.14592943]
[1739967917505,0.00013826,96587.0,96586.0,0.30123143]
[1739967917704,0.00013826,96587.0,96586.0,0.14592943]
[1739967919824,0.01636738,96587.0,96586.0,0.14592943]
[1739967921019,0.01636738,96587.0,96586.0,0.47052943]
[1739967924155,0.00013826,96587.0,96586.0,0.47052943]
[1739967927114,0.01636717,96587.0,96586.0,0.47052943]
[1739967932614,0.00013826,96587.0,96586.0,0.47052943]
[1739967935793,0.01636719,96587.0,96586.0,0.47052943]
[1739967937242,0.01636719,96587.0,96586.0,0.62583143]
[1739967937634,0.01636719,96587.0,96586.0,0.47052943]
[1739967944064,0.00013826,96587.0,96586.0,0.47052943]
[1739967945135,3.826e-05,96587.0,96586.0,0.47052943]
[1739967948635,0.01626699,96587.0,96586.0,0.47052943]
[1739967957177,3.826e-05,96587.0,96586.0,0.47052943]
[1739967960204,0.01626691,96587.0,96586.0,0.47052943]
[1739967967759,3.826e-05,96587.0,96586.0,0.47052943]
[1739967969894,0.01626712,96587.0,96586.0,0.47052943]
[1739967974406,3.826e-05,96587.0,96586.0,0.70683143]
[1739967974650,3.826e-05,96587.0,96586.0,0.74948603]
[1739967975394,0.0004256,96598.0,96597.0,0.2521974]
[1739967975634,0.0004256,96598.0,96597.0,0.75881829]
[1739967976587,0.0004256,96598.0,96597.0,0.73250105]
[1739967977123,0.0004256,96598.0,96597.0,0.73150105]
[1739967977362,0.0004256,96598.0,96597.0,0.72650105]
[1739967977610,0.0004256,96598.0,96597.0,0.73350105]
[1739967978340,0.0004256,96598.0,96597.0,0.74050105]
[1739967979397,0.0004256,96598.0,96597.0,0.72650105]
[1739967979616,0.0004256,96598.0,96597.0,0.73350105]
[1739967979799,0.0004256,96598.0,96597.0,0.74050105]
[1739967980512,0.0004256,96598.0,96597.0,1.28620105]
[1739967980732,0.0004256,96598.0,96597.0,1.30741342]
[1739967981073,0.0004255,96603.0,96602.0,0.155276]
[1739967981298,0.00049323,96603.0,96602.0,0.33991464]
[1739967981486,0.00049323,96603.0,96602.0,0.33887965]
[1739967982338,0.00049323,96603.0,96602.0,0.34587965]
[1739967982741,0.00049323,96603.0,96602.0,0.35287965]
[1739967983635,0.00049323,96603.0,96602.0,1.22317965]
[1739967990777,0.0004255,96623.0,96615.0,0.1711684]
[1739967991016,0.01622447,96621.0,96615.0,0.28111205]
[1739967991256,0.01622447,96621.0,96615.0,0.28705569]
[1739967992845,0.01622447,96621.0,96615.0,0.37315569]
[1739967993307,0.0004255,96623.0,96615.0,0.37315569]
[1739967993965,0.0004255,96623.0,96615.0,0.38015569]
[1739967994174,0.0004255,96623.0,96615.0,0.36615569]
[1739967994664,0.0004255,96623.0,96615.0,0.38379877]
[1739967994916,0.0004255,96623.0,96615.0,0.37679877]
[1739967995368,0.0004255,96623.0,96615.0,0.70839877]
[1739967995596,0.0004255,96623.0,96615.0,0.72301432]
[1739967996313,0.01664909,96623.0,96615.0,0.72301432]
[1739967997005,0.01664909,96623.0,96615.0,0.74392197]
[1739968001378,0.01664909,96623.0,96615.0,1.28962197]
[1739968002736,0.01664909,96623.0,96615.0,0.74392197]
[1739968002974,0.01664909,96623.0,96615.0,0.79382197]
[1739968003726,0.0004255,96623.0,96615.0,0.79382197]
[1739968005984,0.0004255,96623.0,96615.0,0.78638197]
[1739968006226,0.0004255,96623.0,96615.0,0.79382197]
[1739968006699,0.01664902,96623.0,96615.0,0.79382197]
[1739968006907,0.01664902,96623.0,96615.0,0.77982197]
[1739968007116,0.01664902,96623.0,96615.0,0.78682197]
[1739968007248,0.01664902,96623.0,96615.0,1.33252197]
[1739968008064,0.01664902,96623.0,96615.0,1.33952197]
[1739968013509,0.0004255,96623.0,96615.0,1.33952197]
[1739968014420,0.0004255,96623.0,96615.0,1.33252197]
[1739968014720,0.0004255,96623.0,96615.0,1.33952197]
[1739968015566,0.0004255,96623.0,96615.0,1.33252197]
[1739968015769,0.0004255,96623.0,96615.0,1.33952197]
[1739968016141,0.0004255,96623.0,96615.0,1.32552197]
[1739968016340,0.0004255,96623.0,96615.0,1.33252197]
[1739968017175,0.0004255,96623.0,96615.0,1.33952197]
[1739968018950,0.0004255,96623.0,96615.0,1.37176315]
[1739968019585,0.0004255,96623.0,96615.0,1.36476315]
[1739968019949,0.0004255,96623.0,96615.0,1.37176315]
[1739968020377,0.0004255,96623.0,96615.0,1.36476315]
[1739968020581,0.0004255,96623.0,96615.0,1.37176315]
[1739968030102,0.0004255,96623.0,96615.0,1.36432315]
[1739968030280,0.0004255,96623.0,96615.0,1.37176315]
[1739968038794,0.0004255,96623.0,96615.0,1.36432315]
[1739968039031,0.0004255,96623.0,96615.0,1.37176315]
[1739968043427,0.0004255,96623.0,96615.0,1.36432315]
[1739968043663,0.0004255,96623.0,96615.0,1.37176315]
[1739968056138,0.0004255,96623.0,96615.0,1.35732315]
[1739968056636,0.0004255,96623.0,96615.0,1.36476315]
[1739968056877,0.0004255,96623.0,96615.0,1.37176315]
[1739968078621,0.0004255,96623.0,96615.0,1.06924952]
[1739968078827,0.0004255,96623.0,96615.0,1.06180952]
[1739968079048,0.083,96621.0,96615.0,1.22450452]
[1739968079225,0.083,96621.0,96615.0,1.06180952]
[1739968079436,0.0500256,96616.0,96615.0,1.03700834]
[1739968080651,0.0500256,96616.0,96615.0,1.03000834]
[1739968080959,0.0500256,96616.0,96615.0,1.03700834]
[1739968081166,0.0500256,96616.0,96615.0,1.03000834]
[1739968081377,0.0500256,96616.0,96615.0,1.03571243]
[1739968081591,0.0500256,96616.0,96615.0,1.04271243]
[1739968081818,0.1280256,96616.0,96615.0,0.47610478]
[1739968082020,0.1280256,96616.0,96615.0,0.46910478]
[1739968082428,0.1280256,96616.0,96615.0,0.47610478]
[1739968082658,0.0500256,96616.0,96615.0,0.47610478]
[1739968086656,0.06624891,96616.0,96615.0,0.47610478]
[1739968092161,0.06624891,96616.0,96615.0,0.46866478]
[1739968092410,0.06624891,96616.0,96615.0,0.47610478]
[1739968093689,0.06624891,96616.0,96615.0,0.15150478]
[1739968095447,0.0500256,96616.0,96615.0,0.15150478]
[1739968097045,0.0004256,96616.0,96615.0,0.15150478]
[1739968097675,0.0004256,96616.0,96615.0,0.30675978]
[1739968098424,0.01664848,96616.0,96615.0,0.30675978]
[1739968099105,0.01664848,96616.0,96615.0,0.15150478]
[1739968099794,0.01664848,96616.0,96615.0,0.30675978]
[1739968100506,0.01664848,96616.0,96615.0,0.15150478]
[1739968100650,0.01664848,96616.0,96615.0,0.30675978]
[1739968100855,0.01664848,96616.0,96615.0,0.15150478]
[1739968101338,0.01664848,96616.0,96615.0,0.30675978]
[1739968102684,0.01664848,96616.0,96615.0,0.29931978]
[1739968102947,0.01664848,96616.0,96615.0,0.30675978]
[1739968103573,0.0004256,96616.0,96615.0,0.30675978]
[1739968108029,0.01664845,96616.0,96615.0,0.29931978]
[1739968108268,0.01664845,96616.0,96615.0,0.15150478]
[1739968108677,0.01664845,96616.0,96615.0,0.14406478]
[1739968108915,0.01664845,96616.0,96615.0,0.15150478]
[1739968109329,0.01664845,96616.0,96615.0,0.14406478]
[1739968109538,0.01664845,96616.0,96615.0,0.15150478]
[1739968109957,0.01664845,96616.0,96615.0,0.17087699]
[1739968113515,0.0004256,96616.0,96615.0,0.17087699]
[1739968115514,0.0004256,96616.0,96615.0,0.16387699]
[1739968115939,0.0004256,96616.0,96615.0,0.32613199]
[1739968116427,0.0004256,96616.0,96615.0,0.31913199]
[1739968116665,0.01664845,96616.0,96615.0,0.32613199]
[1739968118241,0.01664845,96616.0,96615.0,0.32113199]
[1739968119410,0.01664845,96616.0,96615.0,0.16587699]
[1739968120063,0.01664845,96616.0,96615.0,0.31413199]
[1739968120291,0.01664845,96616.0,96615.0,0.30713199]
[1739968120507,0.01664845,96616.0,96615.0,0.31413199]
[1739968121543,0.01664845,96616.0,96615.0,0.32113199]
[1739968123678,0.0004256,96616.0,96615.0,0.32113199]
[1739968126582,0.01664839,96616.0,96615.0,0.32113199]
[1739968126993,0.01636851,96616.0,96615.0,0.32113199]
[1739968127903,0.01636851,96616.0,96615.0,0.3521192]
[1739968132304,0.01636851,96616.0,96615.0,0.3843933]
[1739968132499,0.01636851,96616.0,96615.0,0.3521192]
[1739968133104,0.01636851,96616.0,96615.0,0.38439065]
[1739968133555,0.00014572,96616.0,96615.0,0.3529702]
[1739968135529,0.00014572,96616.0,96615.0,0.1977152]
[1739968135731,0.00014572,96616.0,96615.0,0.3529702]
[1739968136826,0.01636859,96616.0,96615.0,0.3529702]
[1739968144059,0.01636859,96616.0,96615.0,0.6775702]
[1739968146810,0.00014572,96616.0,96615.0,0.6775702]
[1739968149792,0.01636854,96616.0,96615.0,0.6775702]
[1739968157011,0.00014572,96616.0,96615.0,0.6775702]
[1739968160049,0.01636849,96616.0,96615.0,0.6775702]
[1739968167127,0.00014572,96616.0,96615.0,0.6775702]
[1739968167678,0.00014572,96616.0,96615.0,0.5223152]
[1739968167891,0.00014572,96616.0,96615.0,0.6775702]
[1739968169772,0.00014572,96616.0,96615.0,0.5223152]
[1739968170008,0.00014572,96616.0,96615.0,0.6775702]
[1739968170252,0.01636844,96616.0,96615.0,0.6775702]
[1739968171426,0.01636844,96616.0,96615.0,0.62721078]
[1739968171626,0.01636844,96616.0,96615.0,0.63299258]
[1739968173010,0.01636844,96616.0,96615.0,0.6833732]
[1739968173668,0.01636844,96616.0,96615.0,0.6763732]
[1739968173865,0.01636844,96616.0,96615.0,0.6833732]
[1739968174481,0.01636844,96616.0,96615.0,0.6693732]
[1739968174689,0.01636844,96616.0,96615.0,0.6833732]
[1739968174846,0.01636844,96616.0,96615.0,0.6759332]
[1739968175041,0.01636844,96616.0,96615.0,0.5281182]
[1739968175257,0.01636844,96616.0,96615.0,0.6833732]
[1739968177033,0.00014572,96616.0,96615.0,0.6833732]
[1739968180173,0.01636841,96616.0,96615.0,0.6833732]
[1739968187539,0.00014572,96616.0,96615.0,0.6833732]
[1739968190553,0.01636844,96616.0,96615.0,0.5281182]
[1739968191921,0.01636844,96616.0,96615.0,0.6833732]
[1739968192123,0.01636844,96616.0,96615.0,0.5281182]
[1739968192598,0.01636844,96616.0,96615.0,0.5342827]
[1739968194365,0.01636844,96616.0,96615.0,0.5281182]
[1739968194719,0.00014572,96616.0,96615.0,0.5281182]
[1739968197010,0.00014572,96616.0,96615.0,0.5206782]
[1739968197234,0.00014572,96616.0,96615.0,0.5281182]
[1739968199319,0.01636865,96616.0,96615.0,0.5281182]
[1739968202510,0.01636865,96616.0,96615.0,0.48311474]
[1739968202931,0.01636865,96616.0,96615.0,0.49011474]
[1739968203807,0.01636865,96616.0,96615.0,0.49711474]
[1739968205329,0.00014572,96616.0,96615.0,0.49711474]
[1739968207878,0.15341632,96621.0,96615.0,0.49711474]
[1739968208519,0.01032494,96621.0,96615.0,0.49711474]
[1739968208720,7.674e-05,96622.0,96615.0,0.49011474]
[1739968209002,0.15532074,96622.0,96615.0,0.48811474]
[1739968209816,0.01622294,96621.0,96615.0,0.48311474]
[1739968210023,0.02669443,96621.0,96615.0,0.48811474]
[1739968210222,0.02669443,96621.0,96616.0,0.01937716]
[1739968210425,0.02669443,96621.0,96617.0,0.10250365]
[1739968211232,0.01622294,96621.0,96617.0,0.10250365]
[1739968211476,0.01622294,96621.0,96618.0,0.01937716]
[1739968211703,0.01622294,96621.0,96619.0,0.10250365]
[1739968212484,0.02681707,96621.0,96619.0,0.10250365]
[1739968212887,0.01622294,96621.0,96619.0,0.10250365]
[1739968213297,0.01622294,96621.0,96620.0,0.00744]
[1739968214472,0.01664844,96621.0,96620.0,0.00744]
[1739968214669,0.01664844,96621.0,96620.0,0.12441705]
[1739968214870,0.01664844,96621.0,96620.0,0.13185705]
[1739968215212,0.01664844,96621.0,96620.0,0.15121154]
[1739968215416,0.01664844,96621.0,96620.0,0.15621154]
[1739968217049,0.0004255,96621.0,96620.0,0.15621154]
[1739968217805,0.0004255,96621.0,96620.0,0.16198936]
[1739968220094,0.0004255,96621.0,96620.0,0.15598936]
[1739968220513,0.01664829,96621.0,96620.0,0.16198936]
[1739968221676,0.01664829,96621.0,96620.0,0.15698936]
[1739968221914,0.17189329,96621.0,96620.0,0.05448571]
[1739968222158,0.17189329,96621.0,96620.0,0.05948571]
[1739968222688,0.17189329,96621.0,96620.0,0.05370789]
[1739968222865,0.17189329,96621.0,96620.0,0.04270789]
[1739968223064,0.17189329,96621.0,96620.0,0.05370789]
[1739968229743,0.17189329,96621.0,96620.0,0.04626789]
[1739968229996,0.32189329,96621.0,96620.0,0.03035449]
[1739968230240,0.4597705,96621.0,96620.0,0.011]
[1739968230692,0.4597705,96621.0,96620.0,0.005]
[1739968231172,0.328248,96619.0,96618.0,0.00744]
[1739968232544,0.328248,96619.0,96618.0,0.00844]
[1739968233229,0.3444728,96619.0,96618.0,0.00844]
[1739968233431,0.328248,96619.0,96618.0,0.00844]
[1739968233708,0.328248,96619.0,96618.0,0.002]
[1739968235194,0.328248,96619.0,96618.0,0.001]
[1739968235603,0.329248,96619.0,96618.0,0.001]
[1739968236002,0.305253,96616.0,96615.0,0.008291]
[1739968237004,0.305253,96616.0,96615.0,0.000851]
[1739968237820,0.32147888,96616.0,96615.0,0.000851]
[1739968240638,0.34447888,96616.0,96615.0,0.000851]
[1739968241056,0.42657888,96616.0,96615.0,0.000851]
[1739968242044,0.42757888,96616.0,96615.0,0.000851]
[1739968242404,0.42857888,96616.0,96615.0,0.000851]
[1739968243768,0.47447888,96616.0,96615.0,0.000851]
[1739968243997,0.57698253,96616.0,96615.0,0.000851]
[1739968245177,0.47447888,96616.0,96615.0,0.000851]
[1739968248275,0.5193317,96616.0,96615.0,0.000851]
[1739968249755,0.4372317,96616.0,96615.0,0.000851]
[1739968249964,0.42100582,96616.0,96615.0,0.000851]
[1739968250889,0.305266,96608.0,96607.0,0.006271]
[1739968251141,0.328266,96608.0,96607.0,0.006271]
[1739968252188,0.328266,96608.0,96607.0,0.008271]
[1739968252795,0.328266,96608.0,96607.0,0.002]
[1739968253001,0.34449316,96608.0,96607.0,0.002]
[1739968257267,0.328266,96608.0,96607.0,0.002]
[1739968260258,0.34449341,96608.0,96607.0,0.002]
[1739968261126,0.34449341,96608.0,96607.0,0.002851]
[1739968266418,0.34449341,96608.0,96607.0,0.001851]
[1739968267143,0.328266,96608.0,96607.0,0.001851]
[1739968267522,0.328266,96608.0,96607.0,0.000851]
[1739968268970,0.329266,96608.0,96607.0,0.000851]
[1739968269163,0.330266,96608.0,96607.0,0.000851]
[1739968270200,0.3464935,96608.0,96607.0,0.000851]
[1739968273746,0.48852861,96608.0,96607.0,0.000851]
[1739968274566,0.39177486,96608.0,96607.0,0.000851]
[1739968274768,0.47107486,96608.0,96607.0,0.000851]
[1739968275012,0.47407486,96608.0,96607.0,0.000851]
[1739968275249,0.47807486,96608.0,96607.0,0.000851]
[1739968280836,0.46184736,96608.0,96607.0,0.000851]
[1739968281199,0.46961409,96608.0,96607.0,0.000851]
[1739968281403,0.57211774,96608.0,96607.0,0.000851]
[1739968283621,4.28538974,96608.0,96607.0,0.000851]
[1739968283740,4.28138974,96608.0,96607.0,0.000851]
[1739968284227,4.28238974,96608.0,96607.0,0.000851]
[1739968284453,4.28538974,96608.0,96607.0,0.000851]
[1739968284676,4.27838974,96608.0,96607.0,0.000851]
[1739968284908,4.28338974,96608.0,96607.0,0.000851]
[1739968285140,4.28738974,96608.0,96607.0,0.000851]
[1739968286406,4.28338974,96608.0,96607.0,0.000851]
[1739968286638,0.02,96605.0,96603.0,0.000851]
[1739968286844,0.328295,96590.0,96587.0,0.00744]
[1739968287047,0.37454085,96590.0,96587.0,0.00744]
[1739968288192,0.37454085,96590.0,96589.0,0.00091873]
[1739968288395,0.37554085,96590.0,96589.0,0.00091873]
[1739968288809,0.37654085,96590.0,96589.0,0.00091873]
[1739968290194,0.37554085,96590.0,96589.0,0.00091873]
[1739968290401,0.37654085,96590.0,96589.0,0.00091873]
[1739968290603,0.39277173,96590.0,96589.0,0.00091873]
[1739968290785,0.39177173,96590.0,96589.0,0.00091873]
[1739968291542,0.39277173,96590.0,96589.0,0.00091873]
[1739968291738,0.4754601,96590.0,96589.0,0.00091873]
[1739968293158,0.39277173,96590.0,96589.0,0.00091873]
[1739968294370,0.37654085,96590.0,96589.0,0.00091873]
[1739968296930,0.39277203,96590.0,96589.0,0.00091873]
[1739968297937,0.37654085,96590.0,96589.0,0.00091873]
[1739968300818,0.39277197,96590.0,96589.0,0.00091873]
[1739968301015,0.45349127,96590.0,96589.0,0.00091873]
[1739968306142,0.45249127,96590.0,96589.0,0.00091873]
[1739968306322,0.45449127,96590.0,96589.0,0.00091873]
[1739968306783,0.45349127,96590.0,96589.0,0.00091873]
[1739968306921,0.45149127,96590.0,96589.0,0.00091873]
[1739968307125,0.43726015,96590.0,96589.0,0.00091873]
[1739968307307,0.43926015,96590.0,96589.0,0.00091873]
[1739968308419,0.43726015,96590.0,96589.0,0.00091873]
[1739968308621,0.44026015,96590.0,96589.0,0.00091873]
[1739968309246,0.43826015,96590.0,96589.0,0.00091873]
[1739968309496,0.44226015,96590.0,96589.0,0.00091873]
[1739968310394,0.45849223,96590.0,96589.0,0.00091873]
[1739968318476,0.02,96588.0,96572.0,0.083351]
[1739968318632,0.328322,96573.0,96572.0,0.00089461]
[1739968318830,3.7048941,96573.0,96572.0,6.1e-07]
[1739968319059,0.47798275,96573.0,96572.0,6.1e-07]
[1739968319256,0.52418275,96573.0,96572.0,6.1e-07]
[1739968319463,0.63675476,96573.0,96572.0,6.1e-07]
[1739968320505,0.66742316,96573.0,96572.0,6.1e-07]
[1739968320709,0.63675476,96573.0,96572.0,6.1e-07]
[1739968321111,0.55865476,96573.0,96572.0,6.1e-07]
[1739968321532,0.53218275,96573.0,96572.0,6.1e-07]
[1739968322371,0.55218275,96573.0,96572.0,6.1e-07]
[1739968323028,0.56841853,96573.0,96572.0,6.1e-07]
[1739968326781,0.55218275,96573.0,96572.0,6.1e-07]
[1739968329862,0.56841869,96573.0,96572.0,6.1e-07]
[1739968330973,0.56841869,96573.0,96572.0,0.00085201]
[1739968331395,0.56884439,96573.0,96572.0,0.00085201]
[1739968331774,4.77820239,96573.0,96572.0,0.00085201]
[1739968332996,4.75391739,96573.0,96572.0,0.00085201]
[1739968333196,4.48420639,96573.0,96572.0,0.00085201]
[1739968334300,3.59894245,96573.0,96572.0,0.00085201]
[1739968335262,3.55274245,96573.0,96572.0,0.00085201]
[1739968336053,3.54874245,96573.0,96572.0,0.00085201]
[1739968336283,3.55374245,96573.0,96572.0,0.00085201]
[1739968336887,3.56997839,96573.0,96572.0,0.00085201]
[1739968337091,3.56597839,96573.0,96572.0,0.00085201]
[1739968337290,3.56997839,96573.0,96572.0,0.00085201]
[1739968338716,3.56097839,96573.0,96572.0,0.00085201]
[1739968338924,3.56897839,96573.0,96572.0,0.00085201]
[1739968339610,0.52264439,96573.0,96572.0,0.00085201]
[1739968339823,3.56742839,96573.0,96572.0,0.00085201]
[1739968342350,3.56342839,96573.0,96572.0,0.00085201]
[1739968342685,3.56642839,96573.0,96572.0,0.00085201]
[1739968344133,3.57242839,96573.0,96572.0,0.00085201]
[1739968350311,3.55619245,96573.0,96572.0,1e-08]
[1739968350509,0.30535,96556.0,96555.0,0.0008512]
[1739968350687,0.37641867,96556.0,96555.0,0.00089474]
[1739968350892,0.41614086,96556.0,96555.0,0.00089474]